Cogmind - Beta 15 @@@ ROGUE MODE // 2025.08.21 @ 17:17:46 Player: JuustuToug Result: Destroyed by B-86 Titan with Hardcell Cannon Performance ------------- Evolutions (6) 3000 Regions Visited (17) 3400 Robots Destroyed (93) 465 Value Destroyed (4791) 4791 Prototype IDs (26) 520 Alien Tech Used (0) 0 Bonus (3864) 3864 TOTAL SCORE: 16040 Bonus ------- High Alert Combat Kills 664 Follower Combat Kills 990 Entered Garrisons 800 Used RIF Installer 1500 Friendly Fire -90 Cogmind --------- Core Integrity 0/1150 Matter 300/300 Energy 139/170 System Corruption 40% Temperature Cool (0) Movement Core (50) Location -4/Extension Parts ------- > --- POWER (2) -------- Light Antimatter Reactor > --- PROPULSION (5) --- (None) > --- UTILITY (10) ----- Advanced Heat Sink Gravity Neutralizer Enhanced Optical Array Improved Utility Shielding Hacking Suite Hacking Suite System Shield System Shield > --- WEAPON (2) ------- (None) > --- INVENTORY (5) ---- Myomer Leg Advanced Heat Sink Medium Storage Unit Improved Transmission Jammer KE Penetrator Peak State ------------ > --- POWER ------------ Micro Fission Core > --- PROPULSION ------- Gravmag Array Gyrokinetic Inverter Improved Linear Gravjet Field Propulsion Drive > --- UTILITY ---------- Scrap Engine Improved Cryofiber Web Gravity Neutralizer Enhanced Optical Array Signal Interpreter Hacking Suite Hacking Suite System Shield System Shield > --- WEAPON ----------- Enhanced Gauss Cannon Spear > --- INVENTORY -------- Light Fission Core Medium Storage Unit Gravity Neutralizer Improved Transmission Jammer Heavy Shock Bomb Launcher [Rating: 94] Favorites ----------- Power Light Ion Engine Engine Light Ion Engine Power Core Micro Fission Core Reactor Light Quantum Reactor Propulsion Aluminum Leg Leg Aluminum Leg Hover Unit Backup Propulsion III Flight Unit Field Propulsion Drive Utility Hacking Suite Device Improved Heat Sink Storage Medium Storage Unit Processor Signal Interpreter Hackware Hacking Suite Protection Improved Light Armor Plating Weapon EM Pulse Gun Energy Gun EM Pulse Gun Energy Cannon Advanced Plasma Cannon Ballistic Gun Assault Rifle Ballistic Cannon Enhanced Gauss Cannon Launcher Grenade Launcher Special Weapon Remote Datajack Impact Weapon Hammer Slashing Weapon Scythe Piercing Weapon Spear Build | -11 -10 -10 -9 -8 -7 -7 -7 -7 -7 -7 -7 -5 -5 -5 -5 -4 -4 ------- Run | Yrd Mat Min Mat Mat Fac Was Fac Gar Sto Gar Rec Fac Gar Fac Gar Fac Ext Slots Evolved 12 | . . . 2 2 2 . . . . . . 4 . . . 2 . Power 1 | . . . . . . . . . . . . . . . . 1 . Propulsion 3 | . . . 1 1 . . . . . . . 1 . . . . . Utility 8 | . . . 1 1 2 . . . . . . 3 . . . 1 . Weapon . | . . . . . . . . . . . . . . . . . . Parts Attached 164 | 6 11 6 9 13 3 5 . 22 12 17 2 10 4 7 1 10 26 Power 25 | 1 3 1 1 1 . 1 . 2 2 3 . 2 1 . . 2 5 Engine 12 | 1 3 1 1 1 . . . 1 2 2 . . . . . . . Core 7 | . . . . . . 1 . . . 1 . 2 . . . 2 1 Reactor 6 | . . . . . . . . 1 . . . . 1 . . . 4 Propulsion 41 | 2 . 1 4 7 1 . . 7 1 4 . 2 . 2 . 4 6 Treads . | . . . . . . . . . . . . . . . . . . Leg 24 | 2 . . 2 3 . . . 7 . 4 . . . . . . 6 Wheel . | . . . . . . . . . . . . . . . . . . Hover 5 | . . . . . . . . . . . . . . 1 . 4 . Flight 12 | . . 1 2 4 1 . . . 1 . . 2 . 1 . . . Utility 58 | 1 4 2 1 1 1 2 . 9 2 7 2 3 3 4 1 3 12 Device 22 | . 1 1 . . . . . 4 . 3 1 2 . 2 1 1 6 Storage 4 | 1 2 . . . . . . . . . . . . . . . 1 Processor 3 | . . . 1 . . . . . . . 1 . . 1 . . . Hackware 14 | . . 1 . 1 1 1 . . . 3 . 1 3 1 . 2 . Protection 15 | . 1 . . . . 1 . 5 2 1 . . . . . . 5 Artifact . | . . . . . . . . . . . . . . . . . . Weapon 40 | 2 4 2 3 4 1 2 . 4 7 3 . 3 . 1 . 1 3 Energy Gun 14 | 1 2 1 . 2 . 1 . 1 4 . . 1 . . . . 1 Energy Cannon 7 | . . . 3 . . . . 2 . 2 . . . . . . . Ballistic Gun 6 | 1 1 1 . . . . . . 1 1 . . . . . . 1 Ballistic Cannon 3 | . . . . . . . . . . . . 1 . 1 . . 1 Launcher 4 | . 1 . . . . 1 . . 1 . . . . . . 1 . Special Weapon 1 | . . . . . . . . 1 . . . . . . . . . Impact Weapon 3 | . . . . 2 . . . . 1 . . . . . . . . Slashing Weapon 1 | . . . . . 1 . . . . . . . . . . . . Piercing Weapon 1 | . . . . . . . . . . . . 1 . . . . . Special Melee Weapon . | . . . . . . . . . . . . . . . . . . Unidentified Prototypes 14 | . . 1 . 2 . . . . 8 1 1 . . 1 . . . Corrupted Parts 17 | . . 3 . . . . . 1 . 5 . . . . . 1 7 System Corruption 80 | . . 9 . . . . . 5 . 25 . . . . . 6 35 Parts Lost 70 | . 2 1 . 8 1 2 . 9 . 8 4 . 6 . 3 13 13 Power 11 | . 1 . . 2 . . . 1 . 2 . . 1 . . 2 2 Propulsion 29 | . . . . 4 1 2 . 3 . 3 2 . 2 . 2 4 6 Utility 19 | . . 1 . 1 . . . 3 . 2 2 . 2 . 1 4 3 Weapon 11 | . 1 . . 1 . . . 2 . 1 . . 1 . . 3 2 Highest Loss Streak 10 | . 2 1 . 4 1 2 . 2 . 5 4 . 5 . 2 8 10 To Critical Strikes 1 | . . . . . . . . . . . . . . . . 1 . Average Backups 5 | 2 7 9 9 4 4 4 5 4 5 4 2 4 4 4 5 4 5 Power 1 | 1 2 2 1 . . . . . . . . . 1 . 2 1 . Propulsion . | . 1 2 1 . . . . . . . . . . . . . . Utility 1 | . . 2 1 . . . 1 1 2 1 . . . 1 2 2 2 Weapon 1 | . 1 1 2 2 3 3 4 1 . 1 1 3 3 2 1 . 1 Tool/Special . | . . . . . . . . . . . . . . . . . . Unused Backups 18 | . . 1 2 . . . . 4 . 1 1 2 1 . . . 6 Power 3 | . . . . . . . . 2 . . . . . . . . 1 Propulsion 1 | . . . . . . . . . . . . . . . . . 1 Utility 3 | . . . . . . . . 2 . 1 . . . . . . . Weapon 9 | . . . 1 . . . . . . . 1 2 1 . . . 4 Tool/Special 2 | . . 1 1 . . . . . . . . . . . . . . Average Slot Usage (%) 85 | . 98 96 99 76 73 82 86 97 99 90 43 53 74 63 74 64 65 Engine 5 | . 14 14 11 6 . . . 2 5 6 2 . . . . . . Core 1 | . . . . . . 4 7 . . . . 2 4 2 5 4 1 Reactor 1 | . . . . . . . . 4 1 . . . . . . . 4 Leg 18 | . 28 28 28 3 1 2 7 25 24 25 5 . . . . . 10 Flight 4 | . . . 4 19 26 15 7 2 5 3 . 8 10 8 7 4 . Device 8 | . . 4 11 16 7 7 7 7 7 7 12 12 22 21 15 12 5 Storage 3 | . 14 14 9 . . . . . . . . . . . . . 2 Processor 5 | . . . 1 9 7 7 7 7 7 7 9 11 5 7 11 10 9 Hackware 12 | . . . 11 10 22 23 23 16 15 14 9 10 15 11 17 18 21 Protection 6 | . 11 6 . . . 5 7 12 15 8 . . . . . . 3 Energy Gun 5 | . 14 20 11 3 . 6 9 3 4 . . 1 . . . . 2 Energy Cannon 3 | . . . 10 1 . . . 2 . 10 2 . . . . . . Ballistic Gun 2 | . 11 7 . . . . . . . . . . . . . . 2 Slashing Weapon 1 | . . . . . 7 2 . 6 5 . . . . . . . . Peak Build Rating 94 | 6 8 20 25 32 36 43 40 63 56 74 42 86 86 83 84 94 91 Average Rating 43 | 3 7 11 22 24 34 37 39 49 54 65 34 63 79 63 74 71 56 On Entrance 38 | . 6 8 14 24 32 33 40 40 56 53 37 37 86 47 82 65 25 Naked Turns . | . . . . . . . . . . . . . . . . . . Heaviest Build 65 | 12 20 20 22 13 3 18 15 36 27 50 20 17 17 21 19 18 65 Greatest Support 102 | 20 20 20 30 36 16 16 12 83 83 74 36 20 20 26 26 33 102 Greatest Overweight (x) 4 | . . 3 . 1 . 4 1 1 . . . . . . . 1 1 Average Overweight (x) . | . . . . . . . 1 . . . . . . . . . . Largest Inventory Capacity 10 | 8 10 10 10 5 5 5 5 5 5 5 5 5 5 5 5 5 10 Average Capacity 6 | 7 9 10 9 5 5 5 5 5 5 5 5 5 5 5 5 5 7 Most Carried 10 | 5 10 10 10 5 5 5 5 5 5 5 5 5 5 5 5 5 10 Average Carried 5 | 2 7 9 9 4 4 4 5 4 4 4 2 4 4 4 5 4 6 Final Capacity 10 | 8 10 10 5 5 5 5 5 5 5 5 5 5 5 5 5 5 5 Final Carried 10 | 2 10 10 5 4 5 5 5 5 5 3 4 5 4 5 5 3 5 Scrap Engine Consumption 25 | . . . . . . . . . . . 7 3 7 8 . . . Constructs Created 6 | . . . . . . . . . . . . 1 1 4 . . . Class Distribution -------------------- 31% | Hacker-Mutant 29% | Scavenger-Mutant 29% | Mutant 4% | Hacker-Scout 3% | Scout Dominant Class ---------------- Mutant | -10/Materials Mutant | -10/Mines Scavenger-Mutant | -9/Materials Scout | -8/Materials Hacker-Mutant | -7/Factory Hacker-Mutant | -7/Waste Hacker-Mutant | -7/Factory Hacker-Mutant | -7/Garrison Hacker-Mutant | -7/Storage Scavenger-Mutant | -7/Garrison Mutant | -7/Recycling Hacker-Mutant | -5/Factory Hacker-Scout | -5/Garrison Mutant | -5/Factory Hacker-Mutant | -5/Garrison Hacker-Mutant | -4/Factory Hacker-Mutant | -4/Extension Resources | -11 -10 -10 -9 -8 -7 -7 -7 -7 -7 -7 -7 -5 -5 -5 -5 -4 -4 ----------- Run | Yrd Mat Min Mat Mat Fac Was Fac Gar Sto Gar Rec Fac Gar Fac Gar Fac Ext Matter Collected 3084 | 239 349 135 75 7 61 282 26 473 75 507 37 . . 34 . 26 758 Remotely . | . . . . . . . . . . . . . . . . . . Salvage Created 3727 | . 625 92 209 11 . . . 960 150 1133 . . . 34 . . 513 Parts 190 | . 43 9 15 1 . . . 36 5 58 . . . 1 . . 22 Haulers Intercepted 2 | . 2 . . . . . . . . . . . . . . . . Recyclers Shooed 2 | . . 1 . . . . . . . . . . . . . 1 . Parts Field Recycled . | . . . . . . . . . . . . . . . . . . Retrieved Matter . | . . . . . . . . . . . . . . . . . . Parts Self-Destructed . | . . . . . . . . . . . . . . . . . . Prevented . | . . . . . . . . . . . . . . . . . . Kills | -11 -10 -10 -9 -8 -7 -7 -7 -7 -7 -7 -7 -5 -5 -5 -5 -4 -4 ------- Run | Yrd Mat Min Mat Mat Fac Was Fac Gar Sto Gar Rec Fac Gar Fac Gar Fac Ext Combat Hostiles Destroyed 72 | . 15 5 5 . . . . 18 2 24 . . . . . . 3 Melee 6 | . . . . . . . . 6 . . . . . . . . . Guns 9 | . 4 1 . . . . . 1 2 . . . . . . . 1 Cannons 30 | . . . 2 . . . . 4 . 22 . . . . . . 2 AOE 22 | . 11 4 3 . . . . 4 . . . . . . . . . Classes Destroyed 14 | . 9 . 1 . . . . 3 . . . . . . . . 1 Worker 3 | . 2 . . 1 . . . . . . . . . . . . . Builder 1 | . 1 . . . . . . . . . . . . . . . . Tunneler 1 | . 1 . . . . . . . . . . . . . . . . Hauler 2 | . 2 . . . . . . . . . . . . . . . . Recycler 2 | . . . . . . . . . . . . . . . . . 2 Mechanic 2 | . 1 . . . . . . . . . . . . . . . 1 Operator 1 | . 1 . . . . . . . . . . . . . . . . Watcher 8 | . 3 . 4 . . . . . . . . . . 1 . . . Swarmer 22 | . 6 3 3 . . . . 3 . 7 . . . . . . . Grunt 22 | . 9 2 . . . . . 4 . 5 . . . . . . 2 Brawler 2 | . . . . . . . . 1 . 1 . . . . . . . Duelist 1 | . . . . . . . . 1 . . . . . . . . . Sentry 17 | . . . 2 . . . . 6 2 6 . . . . . . 1 Programmer 7 | . . . . . . . . 3 . 4 . . . . . . . Surgeon 1 | . . . . . . . . 1 . . . . . . . . . Thug 1 | . . . . . . . . . . 1 . . . . . . . Best Kill Streak 7 | . 6 3 4 1 . . . 7 1 5 . . . 1 . . 3 Combat Bots Only 7 | . 5 3 3 . . . . 7 1 5 . . . . . . 2 Max Kills in Single Turn 3 | . 3 3 1 1 . . . 2 1 1 . . . 1 . . 1 Gunslinging . | . . . . . . . . . . . . . . . . . . Exploded 3 | . 3 3 1 . . . . 2 . . . . . . . . . Melee 1 | . . . . . . . . 1 . . . . . . . . . Uniques/NPCs Destroyed . | . . . . . . . . . . . . . . . . . . Combat | -11 -10 -10 -9 -8 -7 -7 -7 -7 -7 -7 -7 -5 -5 -5 -5 -4 -4 -------- Run | Yrd Mat Min Mat Mat Fac Was Fac Gar Sto Gar Rec Fac Gar Fac Gar Fac Ext Hostile Shots Fired 1287 | . 57 14 18 103 6 . . 190 75 346 25 4 60 4 65 158 162 Missed 547 | . 22 6 9 58 3 . . 86 34 125 10 2 25 4 36 78 49 Hits 740 | . 35 8 9 45 3 . . 104 41 221 15 2 35 . 29 80 113 Melee 10 | . . . . . . . . 8 . 2 . . . . . . . Projectile 730 | . 35 8 9 45 3 . . 96 41 219 15 2 35 . 29 80 113 AOE 2 | . . . . . . . . . . . . . . . . 2 . Critical Strikes 31 | . . . . 4 1 . . 4 . 8 2 . 1 . 2 5 4 Part Disruptions 1 | . . . . . . . . . . . . . . . . 1 . Damage Taken 11400 | . 473 87 91 644 43 113 24 1390 325 2415 318 43 789 . 515 1458 2672 Core 2434 | . 67 10 16 212 . 6 . 150 34 334 124 20 123 . 152 521 665 Absorbed by Shields 233 | . . . . . . . . . . 26 . . 40 . 60 . 107 Redirected to Shielding 16 | . . . . . . . . . . . . . . . . . 16 Regen/Repaired (Parts) 348 | . . . . . . 42 . 6 . . . . 300 . . . . Core Remaining (%) 67 | 100 . 69 96 61 . . . . . . 7 . . . 70 . . Volleys Fired 319 | . 70 5 13 3 . 9 1 51 13 119 . . 5 3 . . 27 Largest 2 | . 2 2 2 2 . 1 2 2 1 2 . . 1 1 . . 2 Hottest 196 | . 80 80 100 95 . 75 80 150 55 196 . . 5 47 . . 108 Shots Fired 436 | . 119 7 21 5 . 8 2 64 13 146 . . 5 3 . . 43 Gun 208 | . 112 4 8 5 . 7 2 23 13 2 . . . . . . 32 Cannon 200 | . . . 10 . . . . 32 . 144 . . . 3 . . 11 Launcher 18 | . 7 3 3 . . 1 . 4 . . . . . . . . . Special 10 | . . . . . . . . 5 . . . . 5 . . . . Kinetic 102 | . 68 . . . . . . . . . . . . 3 . . 31 Thermal 201 | . . . 10 3 . 7 2 23 . 144 . . . . . . 12 Explosive 18 | . 7 3 3 . . 1 . 4 . . . . . . . . . Electromagnetic 105 | . 44 4 8 2 . . . 32 13 2 . . . . . . . Robot Hit Streak 18 | . 11 17 18 4 . 8 4 15 9 9 . . 2 . . . 6 Robot Miss Streak 5 | . 4 . 2 1 . 1 . 2 1 5 . . 1 4 . . 2 Penetration Max . | . . . . . . . . . . . . . . . . . . Secondary Targets . | . . . . . . . . . . . . . . . . . . Shots Hit Robots 260 | . 71 6 11 4 . 6 2 60 12 57 . . 3 1 . . 27 Core Hits 138 | . 37 8 13 3 . . 2 29 4 29 . . . 1 . . 12 Critical Kills 4 | . . . . . . . . . . 2 . . . . . . 2 Critical Parts Destroyed 5 | . 1 . . . . . . . . 2 . . . . . . 2 Critical Strikes 15 | . 1 . . . . 2 . 4 . 4 . . . . . . 4 Burn 5 | . . . . . . 2 . 3 . . . . . . . . . Meltdown 2 | . . . . . . . . . . 2 . . . . . . . Destroy 5 | . 1 . . . . . . . . . . . . . . . 4 Smash 2 | . . . . . . . . . . 2 . . . . . . . Sever 1 | . . . . . . . . 1 . . . . . . . . . Melee Attacks 93 | . . . . 9 . 5 . 42 3 23 . 2 7 2 . . . Impact 32 | . . . . 9 . . . . . 23 . . . . . . . Slashing 50 | . . . . . . 5 . 42 3 . . . . . . . . Piercing 11 | . . . . . . . . . . . . 2 7 2 . . . Sneak Attacks . | . . . . . . . . . . . . . . . . . . Combat Hostiles . | . . . . . . . . . . . . . . . . . . Follow-up Attacks . | . . . . . . . . . . . . . . . . . . Damage Inflicted 7274 | . 1660 313 382 100 . 150 27 1796 204 2074 . . . 44 . 1 523 Guns 2238 | . 882 55 56 77 . 150 27 367 204 . . . . . . . 420 Cannons 2837 | . . . 158 . . . . 584 . 2005 . . . . . . 90 Explosions 1528 | . 778 258 168 23 . . . 301 . . . . . . . . . Melee 657 | . . . . . . . . 544 . 69 . . . 44 . . . Ramming 14 | . . . . . . . . . . . . . . . . 1 13 Kinetic 724 | . 436 . . . . . . . . . . . . . . . 288 Thermal 3160 | . 159 . 158 72 . 150 27 367 . 2005 . . . . . . 222 Explosive 1346 | . 619 258 168 . . . . 301 . . . . . . . . . Electromagnetic 1373 | . 446 55 56 28 . . . 584 204 . . . . . . . . Impact 69 | . . . . . . . . . . 69 . . . . . . . Slashing 544 | . . . . . . . . 544 . . . . . . . . . Piercing 44 | . . . . . . . . . . . . . . 44 . . . Highest Corruption 62 | . . 9 . 5 . 29 29 35 35 62 62 . . . 3 6 40 Average Corruption 36 | . . 4 . 5 . 16 29 31 35 55 62 . . . 1 6 25 Corruption Purged 1 | . . . . . . . . . . . . . . . . . 1 Corruption Blocked . | . . . . . . . . . . . . . . . . . . Effects 262 | . . 3 . 3 . 15 1 74 10 95 23 . . . 1 3 34 Message Errors 54 | . . 1 . 1 . 6 1 14 2 15 6 . . . 1 1 6 Matter Fused 52 | . . 1 . . . 2 . 13 4 20 4 . . . . . 8 Heat Flow Errors 20 | . . . . 1 . 1 . 4 . 7 3 . . . . 1 3 Energy Discharges 35 | . . . . . . . . 18 1 10 2 . . . . . 4 Parts Rejected 6 | . . . . . . . . 3 . 1 . . . . . . 2 Parts Fused 4 | . . . . . . . . 2 . 1 . . . . . . 1 Data Loss (minor) 35 | . . 1 . 1 . 4 . 9 2 13 1 . . . . . 4 Data Loss (major) 5 | . . . . . . 1 . . . 3 1 . . . . . . Misfires 8 | . . . . . . . . 5 . 2 . . . . . . 1 Alerts 7 | . . . . . . . . 2 . 2 2 . . . . 1 . Misdirections 17 | . . . . . . . . 1 1 6 4 . . . . . 5 Weapon Failures 19 | . . . . . . 1 . 3 . 15 . . . . . . . Overload Shots . | . . . . . . . . . . . . . . . . . . Overflow Damage 180 | . 22 . . . . . . 25 . 83 . . 50 . . . . Projectiles 32 | . . . . . . . . . . 32 . . . . . . . Explosions 72 | . 22 . . . . . . . . . . . 50 . . . . Melee 76 | . . . . . . . . 25 . 51 . . . . . . . Knockbacks . | . . . . . . . . . . . . . . . . . . Impact . | . . . . . . . . . . . . . . . . . . Kinetic . | . . . . . . . . . . . . . . . . . . Secondary . | . . . . . . . . . . . . . . . . . . Self-Inflicted Damage 379 | . 117 1 . . . . . 106 . . . . 155 . . . . Shots 10 | . 5 1 . . . . . 3 . . . . 1 . . . . Rammed 1 | . . . . . . . . . . . . . . . . 1 . Targets Rammed 2 | . . . . . . . . . . . . . . . . 1 1 Kicked 1 | . . . . . . . . . . . . . . . . . 1 Crushed . | . . . . . . . . . . . . . . . . . . Highest Temperature 630 | . 171 48 96 240 6 143 12 210 8 630 170 . . . . 128 251 Average Temperature 84 | . 31 20 37 82 6 60 8 69 5 125 81 . . . . 74 76 Received Heat Transfer 2724 | . 150 30 9 306 45 . 6 336 99 666 230 . 246 . 67 54 480 Effects 10 | . . . . 1 . . . . . 9 . . . . . . . Shutdowns 1 | . . . . . . . . . . 1 . . . . . . . Energy Bleed 2 | . . . . 1 . . . . . 1 . . . . . . . Interference 5 | . . . . . . . . . . 5 . . . . . . . Matter Decay 1 | . . . . . . . . . . 1 . . . . . . . Short Circuit 1 | . . . . . . . . . . 1 . . . . . . . Siege Activations . | . . . . . . . . . . . . . . . . . . Martial Activations . | . . . . . . . . . . . . . . . . . . Shielding Activations . | . . . . . . . . . . . . . . . . . . Robots Disrupted . | . . . . . . . . . . . . . . . . . . Combat Hostiles . | . . . . . . . . . . . . . . . . . . Robots Corrupted 1 | . . . . . . . . 1 . . . . . . . . . Combat Hostiles 1 | . . . . . . . . 1 . . . . . . . . . Parts Fried 4 | . 1 . . . . . . 2 1 . . . . . . . . Impact Corruptions 2 | . . . . . . . . . . 2 . . . . . . . Robots Melted 4 | . . . . . . . . 2 . 2 . . . . . . . Combat Hostiles 4 | . . . . . . . . 2 . 2 . . . . . . . Parts Melted 18 | . 2 . 1 . . . . 5 . 10 . . . . . . . Heat Transferred 5216 | . 250 . 259 161 . 407 74 740 . 2825 . . . . . . 500 Parts Sabotaged . | . . . . . . . . . . . . . . . . . . Parts Stolen . | . . . . . . . . . . . . . . . . . . Parts Stripped . | . . . . . . . . . . . . . . . . . . Power Chain Reactions 4 | . 3 . . 1 . . . . . . . . . . . . . Alert | -11 -10 -10 -9 -8 -7 -7 -7 -7 -7 -7 -7 -5 -5 -5 -5 -4 -4 ------- Run | Yrd Mat Min Mat Mat Fac Was Fac Gar Sto Gar Rec Fac Gar Fac Gar Fac Ext Maximum Alert Level 4 | . 1 . . . . . . 3 2 4 2 . 1 . . . 1 Low Security (%) 54 | 100 88 100 100 100 100 100 100 6 . . . 100 47 100 100 100 87 Level 1 9 | . 11 . . . . . . 10 . 11 14 . 52 . . . 12 Level 2 19 | . . . . . . . . 53 100 22 85 . . . . . . Level 3 9 | . . . . . . . . 28 . 26 . . . . . . . Level 4 7 | . . . . . . . . . . 39 . . . . . . . Level 5 . | . . . . . . . . . . . . . . . . . . High Security . | . . . . . . . . . . . . . . . . . . Max Security . | . . . . . . . . . . . . . . . . . . Peak Influence 1292 | . 223 150 81 180 103 40 45 898 517 1292 593 156 248 114 105 145 224 Initial 577 | . . 58 . 22 81 36 . 31 437 336 577 156 7 114 18 54 29 Average 335 | . 138 49 27 25 78 6 5 565 462 870 476 41 203 62 40 64 104 Influence Increases 4832 | . 604 153 184 315 72 57 45 1107 160 1069 16 30 271 22 117 216 394 Destroy 0b10 Robot/C 1900 | . 300 100 100 . . . 20 580 60 560 . . . . . . 180 Destroy 0b10 Robot/NC 105 | . 55 . 20 5 . . . 5 . . . . . 5 . . 15 Destroy Leader 260 | . 60 20 38 . . . 10 30 30 40 . . . 2 . . 30 Allied During Kill 178 | . . . . . . . 15 109 6 24 . . . . . . 24 Trap Triggered on 0b10 10 | . . . . . . . . . 10 . . . . . . . . Successful Hack 192 | . 4 . 15 31 12 . . 21 21 14 16 26 14 . 12 6 . Disable Machine 150 | . 90 15 . . . . . . 30 . . . . . . . 15 Anti-Garrison Action 650 | . . . . . . . . 250 . 250 . . 150 . . . . Destroy Structure 487 | . 50 18 11 9 . 57 . 97 3 136 . 4 92 . . . 10 Partial Spotted 105 | . . . . 45 15 . . . . . . . . 15 . 30 . Lose Combat Pursuer 795 | . 45 . . 225 45 . . 15 . 45 . . 15 . 105 180 120 Influence Decreases 4812 | . 454 303 129 190 149 160 . 254 541 301 928 393 63 214 38 261 434 Entered New Map 2069 | . . 92 . 33 99 67 . 14 461 181 708 217 3 104 8 51 31 Time Decay 1670 | . 434 201 129 90 40 63 . . 80 . 180 40 . 110 . 80 223 Lost Part 642 | . 20 10 . 51 10 1 . 90 . 80 40 . 60 . 30 130 120 Lost Ally 279 | . . . . . . 29 . 150 . 40 . . . . . . 60 Purge Threat 152 | . . . . 16 . . . . . . . 136 . . . . . Squads Dispatched 9 | . 2 . . 3 1 . 1 . . . . . . . . . 2 Investigation 2 | . 1 . . . 1 . . . . . . . . . . . . Extermination . | . . . . . . . . . . . . . . . . . . Reinforcement 6 | . 1 . . 3 . . . . . . . . . . . . 2 Assault . | . . . . . . . . . . . . . . . . . . Garrison 1 | . . . . . . . 1 . . . . . . . . . . Intercept . | . . . . . . . . . . . . . . . . . . Searches Triggered . | . . . . . . . . . . . . . . . . . . Construction Impeded 1 | . . . . . . . . . . . . . . . . . 1 Haulers Reinforced . | . . . . . . . . . . . . . . . . . . Active Scanning Responses . | . . . . . . . . . . . . . . . . . . Cargo Convoy Interrupts . | . . . . . . . . . . . . . . . . . . Stealth | -11 -10 -10 -9 -8 -7 -7 -7 -7 -7 -7 -7 -5 -5 -5 -5 -4 -4 --------- Run | Yrd Mat Min Mat Mat Fac Was Fac Gar Sto Gar Rec Fac Gar Fac Gar Fac Ext Distress Signals 9 | . . . 2 1 . . . . . . . . . . . . 6 Communications Jammed . | . . . . . . . . . . . . . . . . . . Distress Signals . | . . . . . . . . . . . . . . . . . . Times Spotted 244 | . 27 8 10 34 3 5 2 26 7 33 3 2 14 5 11 26 28 Peak Tracking Total 17 | . 5 3 3 17 3 2 2 9 4 7 5 2 10 3 11 15 7 Tactical Retreats 23 | . 2 . . 5 1 . . 1 . 2 1 . 1 . 3 3 4 Traps | -11 -10 -10 -9 -8 -7 -7 -7 -7 -7 -7 -7 -5 -5 -5 -5 -4 -4 ------- Run | Yrd Mat Min Mat Mat Fac Was Fac Gar Sto Gar Rec Fac Gar Fac Gar Fac Ext Traps Triggered 15 | . . . 1 . 1 . . 4 . 6 . . 1 . 1 . 1 Indirectly . | . . . . . . . . . . . . . . . . . . Trap Hack Attempts . | . . . . . . . . . . . . . . . . . . Triggered . | . . . . . . . . . . . . . . . . . . Disarmed . | . . . . . . . . . . . . . . . . . . Reprogrammed 6 | . . . . . . . . . 6 . . . . . . . . Reused 1 | . . . . . . . . . 1 . . . . . . . . Traps Extracted . | . . . . . . . . . . . . . . . . . . Installed . | . . . . . . . . . . . . . . . . . . Triggered 1 | . . . . . . . . . 1 . . . . . . . . Machines | -11 -10 -10 -9 -8 -7 -7 -7 -7 -7 -7 -7 -5 -5 -5 -5 -4 -4 ---------- Run | Yrd Mat Min Mat Mat Fac Was Fac Gar Sto Gar Rec Fac Gar Fac Gar Fac Ext Machines Disabled 19 | . 6 1 . . . . . 3 2 2 . . 4 . . . 1 Max in Single Turn 2 | . 2 1 . . . . . 1 1 1 . . 2 . . . 1 Garrison Relay 7 | . . . . . . . . 3 . 2 . . 2 . . . . Phase Generator 1 | . . . . . . . . . . . . . 1 . . . . Energy Cycler 1 | . . . . . . . . . . . . . . . . . 1 Machines Repaired . | . . . . . . . . . . . . . . . . . . Machines Dismantled . | . . . . . . . . . . . . . . . . . . Machines Sabotaged . | . . . . . . . . . . . . . . . . . . Overloaded Fab Kills . | . . . . . . . . . . . . . . . . . . Hacking | -11 -10 -10 -9 -8 -7 -7 -7 -7 -7 -7 -7 -5 -5 -5 -5 -4 -4 --------- Run | Yrd Mat Min Mat Mat Fac Was Fac Gar Sto Gar Rec Fac Gar Fac Gar Fac Ext Machines Accessed 54 | . 5 1 2 8 1 . 1 4 3 1 10 4 1 5 1 3 4 Terminals 31 | . 4 . 2 6 . . . 4 2 1 3 1 1 1 1 2 3 Fabricators 2 | . . . . . 1 . . . . . . . . 1 . . . Repair Stations 2 | . . . . . . . . . . . . . . 2 . . . Recycling Units 10 | . 1 . . . . . . . . . 6 2 . . . . 1 Scanalyzers 2 | . . . . 1 . . . . . . . . . . . 1 . Garrison Access 5 | . . . . 1 . . 1 . 1 . . 1 . 1 . . . Total Hacks 158 | . 13 1 8 36 4 . 3 8 16 3 20 11 3 9 1 9 13 Successful 78 | . 7 1 4 19 2 . 1 3 10 1 9 7 1 3 1 2 7 Failed 80 | . 6 . 4 17 2 . 2 5 6 2 11 4 2 6 . 7 6 Catastrophic 23 | . . . 2 4 . . . 2 . . 6 3 . 2 . 2 2 Database Lockouts . | . . . . . . . . . . . . . . . . . . Manual 28 | . 1 . 4 16 . . . . 1 . . 2 . 1 . 3 . Terminals 104 | . 10 . 8 29 . . . 8 14 3 6 4 3 2 1 7 9 Fabricators 6 | . . . . . 4 . . . . . . . . 2 . . . Repair Stations 3 | . . . . . . . . . . . . . . 3 . . . Recycling Units 22 | . 3 . . . . . . . . . 12 3 . . . . 4 Scanalyzers 6 | . . . . 4 . . . . . . . . . . . 2 . Garrison Access 14 | . . . . 3 . . 3 . 2 . . 4 . 2 . . . Terminal Hacks 51 | . 4 1 4 13 . . . 3 8 1 5 2 1 . 1 2 6 Record 1 | . . . . . . . . . . . . . . . . . 1 Part Schematic 1 | . . . . 1 . . . . . . . . . . . . . Robot Analysis 1 | . . . . 1 . . . . . . . . . . . . . Prototype ID Bank 5 | . 1 . . 2 . . . . 1 . 1 . . . . . . Open Door 3 | . . 1 . . . . . 1 . . . . . . . . 1 Level Access Points 2 | . . . 1 1 . . . . . . . . . . . . . Branch Access Points 2 | . . . . 1 . . . . . . . . . . . 1 . Emergency Access Points 4 | . . . . . . . . 1 . 1 . . 1 . 1 . . Terminal Index 1 | . . . . 1 . . . . . . . . . . . . . Repair Station Index 1 | . . . 1 . . . . . . . . . . . . . . Alert Level 3 | . . . . 1 . . . . . . 2 . . . . . . Unreport Threat 3 | . . . . 1 . . . . . . . 2 . . . . . Locate Traps 6 | . 2 . . 1 . . . . 2 . . . . . . . 1 Reprogram Traps 2 | . . . . . . . . . 2 . . . . . . . . Security Status 1 | . . . . . . . . . 1 . . . . . . . . Surveillance Status 1 | . . . . . . . . . . . . . . . . . 1 Investigation Status 1 | . . . . . . . . . 1 . . . . . . . . Hauler Manifests 2 | . . . . . . . . . 1 . . . . . . . 1 Registered Components 2 | . . . 1 1 . . . . . . . . . . . . . Registered Prototypes 2 | . . . 1 . . . . . . . . . . . . . 1 Zone Layout 4 | . 1 . . 2 . . . . . . . . . . . 1 . Garrison Registry 1 | . . . . . . . . 1 . . . . . . . . . Release Object 2 | . . . . . . . . . . . 2 . . . . . . Fabricator Hacks 3 | . . . . . 2 . . . . . . . . 1 . . . Network Status 1 | . . . . . . . . . . . . . . 1 . . . Load Schematic 1 | . . . . . 1 . . . . . . . . . . . . Build 1 | . . . . . 1 . . . . . . . . . . . . Repair Station Hacks . | . . . . . . . . . . . . . . . . . . Recycling Unit Hacks 10 | . 3 . . . . . . . . . 4 2 . . . . 1 Report Inventory 4 | . 1 . . . . . . . . . 2 . . . . . 1 Retrieve Components 6 | . 2 . . . . . . . . . 2 2 . . . . . Scanalyzer 4 | . . . . 4 . . . . . . . . . . . . . Insert Component 2 | . . . . 2 . . . . . . . . . . . . . Analyze 2 | . . . . 2 . . . . . . . . . . . . . Garrison Access Hacks 7 | . . . . . . . 1 . 2 . . 2 . 2 . . . Unlock Access 4 | . . . . . . . 1 . 1 . . 1 . 1 . . . Coupler Status 3 | . . . . . . . . . 1 . . 1 . 1 . . . Unauthorized Hacks 3 | . . . . 2 . . . . . . . 1 . . . . . Terminals 2 | . . . . 2 . . . . . . . . . . . . . Assimilate 1 | . . . . 1 . . . . . . . . . . . . . Botnet 1 | . . . . 1 . . . . . . . . . . . . . Fabricators . | . . . . . . . . . . . . . . . . . . Repair Stations . | . . . . . . . . . . . . . . . . . . Recycling Units . | . . . . . . . . . . . . . . . . . . Scanalyzers . | . . . . . . . . . . . . . . . . . . Garrison Access 1 | . . . . . . . . . . . . 1 . . . . . Broadcast 1 | . . . . . . . . . . . . 1 . . . . . Data Cores Recovered . | . . . . . . . . . . . . . . . . . . Used . | . . . . . . . . . . . . . . . . . . Hacking Detections 44 | . 5 . 2 7 1 . . 4 2 1 6 4 1 4 1 3 3 Full Trace Events 3 | . . . 1 . 1 . . . . 1 . . . . . . . Feedback Events . | . . . . . . . . . . . . . . . . . . Feedback Blocked . | . . . . . . . . . . . . . . . . . . Robot Schematics Acquired . | . . . . . . . . . . . . . . . . . . Robots Built . | . . . . . . . . . . . . . . . . . . Authchips . | . . . . . . . . . . . . . . . . . . Time . | . . . . . . . . . . . . . . . . . . Total Robot Build Rating . | . . . . . . . . . . . . . . . . . . Part Schematics Acquired 3 | . . . . 3 . . . . . . . . . . . . . Parts Built 1 | . . . . . 1 . . . . . . . . . . . . Authchips . | . . . . . . . . . . . . . . . . . . Time 36 | . . . . . 36 . . . . . . . . . . . . Total Part Build Rating 3 | . . . . . 3 . . . . . . . . . . . . Parts Repaired . | . . . . . . . . . . . . . . . . . . Time . | . . . . . . . . . . . . . . . . . . Parts Recycled . | . . . . . . . . . . . . . . . . . . Recycled Matter . | . . . . . . . . . . . . . . . . . . Retrieved Matter . | . . . . . . . . . . . . . . . . . . Retrieved Components 16 | . 9 . . . . . . . . . 4 3 . . . . . Parts Scanalyzed 2 | . . . . 2 . . . . . . . . . . . . . Part Schematics Acquired 2 | . . . . 2 . . . . . . . . . . . . . Parts Damaged . | . . . . . . . . . . . . . . . . . . Bothacking | -11 -10 -10 -9 -8 -7 -7 -7 -7 -7 -7 -7 -5 -5 -5 -5 -4 -4 ------------ Run | Yrd Mat Min Mat Mat Fac Was Fac Gar Sto Gar Rec Fac Gar Fac Gar Fac Ext Used RIF Installer 3 | . . . . . . . . 1 . . . . 1 . 1 . . Zone Cloak 1 | . . . . . . . . . . . . . . . 1 . . Structural Interface 1 | . . . . . . . . . . . . . 1 . . . . Robots Hacked 1 | . . . . . . . . . . . . . 1 . . . . Non-combat . | . . . . . . . . . . . . . . . . . . Combat 1 | . . . . . . . . . . . . . 1 . . . . Robot Hacks Applied 3 | . . . . . . . . . . . . . 3 . . . . link_complan 1 | . . . . . . . . . . . . . 1 . . . . overload_power 2 | . . . . . . . . . . . . . 2 . . . . Relay Couplers Released 29 | . . . . . . . . 11 . 10 . . 8 . . . . Machine Destruction 29 | . . . . . . . . 11 . 10 . . 8 . . . . Attached 6 | . . . . . . . . . . 3 . . 3 . . . . Fabnet Peak Effective % . | . . . . . . . . . . . . . . . . . . Robots Rewired 3 | . . . . . . . . 3 . . . . . . . . . Allies Hacked 2 | . . . . . . . . . . 2 . . . . . . . Hacks Repelled . | . . . . . . . . . . . . . . . . . . Allies | -11 -10 -10 -9 -8 -7 -7 -7 -7 -7 -7 -7 -5 -5 -5 -5 -4 -4 -------- Run | Yrd Mat Min Mat Mat Fac Was Fac Gar Sto Gar Rec Fac Gar Fac Gar Fac Ext Total Allies 27 | . . . . 1 . 18 . 3 . 2 . . . . . . 3 Largest Group 18 | . . . . 1 . 18 7 7 1 3 . . . . . . 2 Highest-Rated Group 434 | . . . . 10 . 434 212 212 31 206 . . . . . . 159 Highest-Rated Ally 159 | . . . . 10 . 35 35 35 31 95 . . . . . . 159 Total Orders . | . . . . . . . . . . . . . . . . . . Ally Attacks 299 | . . . . . . 172 4 53 13 20 . . . . . . 37 Total Damage 9572 | . . . . . . 6002 61 1341 231 789 . . . . . . 1148 Kills 37 | . . . . . . 14 1 11 1 4 . . . . . . 6 Allies Corrupted 1 | . . . . . . . . . . 1 . . . . . . . Allies Melted 1 | . . . . . . . . 1 . . . . . . . . . Intel | -11 -10 -10 -9 -8 -7 -7 -7 -7 -7 -7 -7 -5 -5 -5 -5 -4 -4 ------- Run | Yrd Mat Min Mat Mat Fac Was Fac Gar Sto Gar Rec Fac Gar Fac Gar Fac Ext Active Infowar (turns) 3054 | . 73 182 365 161 89 347 23 2 . 1 235 189 342 112 139 179 615 Optics 1045 | . . . . . . . . . . . . . . 112 139 179 615 Sensors 1917 | . . 182 365 161 89 347 23 2 . . 235 189 324 . . . . IFF 19 | . . . . . . . . . . . . 1 18 . . . . Structural 207 | . 73 . . 134 . . . . . . . . . . . . . Spoofing 1 | . . . . . . . . . . 1 . . . . . . . Jamming 252 | . . . . . . . . . . . . . . . . . 252 Robot Analysis Total 1 | . . . . 1 . . . . . . . . . . . . . Derelict Logs Recovered 1 | . . 1 . . . . . . . . . . . . . . . Drone Launches . | . . . . . . . . . . . . . . . . . . Drone Recoveries . | . . . . . . . . . . . . . . . . . . Exploration | -11 -10 -10 -9 -8 -7 -7 -7 -7 -7 -7 -7 -5 -5 -5 -5 -4 -4 ------------- Run | Yrd Mat Min Mat Mat Fac Was Fac Gar Sto Gar Rec Fac Gar Fac Gar Fac Ext Turns Passed 8029 | 47 1215 584 365 259 92 352 23 1346 178 1456 376 189 378 236 139 179 615 Spaces Moved 7236 | 33 748 375 299 472 218 297 8 853 105 955 593 377 518 422 281 270 412 Core 651 | 9 . . . . . 1 . . . . 458 30 . . . 3 150 Treads . | . . . . . . . . . . . . . . . . . . Legs 3688 | 24 748 374 194 16 . 95 8 853 105 955 135 . . . . . 181 Wheels . | . . . . . . . . . . . . . . . . . . Hover 128 | . . . . . . 14 . . . . . . . . . 33 81 Flight 2769 | . . 1 105 456 218 187 . . . . . 347 518 422 281 234 . Fastest Speed 26 | 50 120 120 30 26 32 32 180 103 103 90 50 39 39 42 42 45 50 Average Speed 77 | 100 120 120 88 35 36 78 180 115 103 92 59 40 39 43 43 48 86 Slowest Speed 285 | 120 120 285 120 115 40 250 180 185 107 103 90 50 45 45 45 100 190 Overloaded Moves . | . . . . . . . . . . . . . . . . . . Propulsion Burnouts . | . . . . . . . . . . . . . . . . . . Robots Hopped 33 | . . . 3 9 2 . . . . . . 3 . . 7 9 . Potential Cave-ins . | . . . . . . . . . . . . . . . . . . Cave-ins Triggered . | . . . . . . . . . . . . . . . . . . Exploration Rate (%) 46 | 5 89 85 36 59 4 85 1 87 24 71 88 9 51 15 56 11 60 Regions Visited 17 Branch Regions 4 Pre-discovered Areas . | . . . . . . . . . . . . . . . . . . Known Exits Taken 8 | . . . 1 1 . . 1 . 1 . 1 1 . 1 . 1 . Unknown Exits Taken 3 | 1 1 1 . . . . . . . . . . . . . . . Scrap Searched 1 | . . 1 . . . . . . . . . . . . . . . Spaces Dug 23 | . . . . 3 . 12 . . 2 3 . 2 1 . . . . Terrain Destroyed 212 | . 46 21 14 9 . 12 . 12 2 10 . 2 80 . . . 4 Melee 14 | . . . . 3 . 5 . . 2 1 . 2 1 . . . . Projectile 12 | . . . . . . . . . . 9 . . . . . . 3 AOE 185 | . 46 21 14 6 . 7 . 12 . . . . 79 . . . . Terrain Rammed . | . . . . . . . . . . . . . . . . . . Walls Destroyed . | . . . . . . . . . . . . . . . . . . Machines Disabled . | . . . . . . . . . . . . . . . . . . Actions | -11 -10 -10 -9 -8 -7 -7 -7 -7 -7 -7 -7 -5 -5 -5 -5 -4 -4 --------- Run | Yrd Mat Min Mat Mat Fac Was Fac Gar Sto Gar Rec Fac Gar Fac Gar Fac Ext Total 9015 | 46 949 499 376 535 227 401 16 1091 154 1330 619 406 679 469 288 307 623 Wait 885 | . 98 104 34 25 6 66 6 77 4 157 15 6 126 20 . 33 108 Move 7162 | 32 747 374 293 453 214 296 7 852 105 953 592 371 516 422 268 255 412 Hop 26 | . . . 2 9 2 . . . . . . 3 . . 5 5 . Pick Up 133 | 8 15 3 12 11 2 5 . 14 4 11 5 9 4 7 . 2 21 Fast Attach 53 | . . 1 . 3 . 2 . 7 7 8 . 4 . 3 . 5 13 Attach 68 | 6 4 1 3 7 1 5 . 6 . 4 3 5 3 4 . 3 13 Detach 11 | . . . . . . 5 . . . . 1 1 1 2 . . 1 Swap 98 | . 11 8 9 7 2 4 . 22 7 12 . 1 4 1 1 2 7 Drop 103 | . 4 3 10 8 . 4 2 15 11 18 3 4 4 5 . 1 11 Fire 319 | . 70 5 13 3 . 9 1 51 13 119 . . 5 3 . . 27 Melee 93 | . . . . 9 . 5 . 42 3 23 . 2 7 2 . . . Ram 2 | . . . . . . . . . . . . . . . . 1 1 Kick 1 | . . . . . . . . . . . . . . . . . 1 Crush . | . . . . . . . . . . . . . . . . . . Escape Stasis 60 | . . . . . . . . 5 . 24 . . 9 . 14 . 8 Rewire 1 | . . . . . . . . . . 1 . . . . . . . Trap . | . . . . . . . . . . . . . . . . . . Miscellaneous . | . . . . . . . . . . . . . . . . . . Route ------- -11/Scrapyard -10/Materials (discovered 4 exits: *Mat x2 / *Min / [*Sub]) -10/Mines (discovered 2 exits: *Mat x2) -9/Materials (discovered 4 exits: *Mat x3 / [*Min]) -8/Materials (discovered 3 exits: *Fac x3) -7/Factory -7/Waste -7/Factory -7/Garrison (discovered 3 exits: *Sto x3) -7/Storage -7/Garrison (discovered 2 exits: *Rec x2) -7/Recycling -5/Factory -5/Garrison -5/Factory -5/Garrison -4/Factory (discovered 4 exits: *Upp x2 / *Ext x2) -4/Extension (discovered 1 exit: [*Res]) History --------- Turn | Location | Event 16 | -11/Scrapyard | Discovered new exit (range 16) 48 | -11/Scrapyard | Entered Materials 243 | -10/Materials | Discovered new exit (range 9) 300 | -10/Materials | Build established: Mutant 769 | -10/Materials | Discovered new exit (range 16) 907 | -10/Materials | Discovered new exit (range 15) 1032 | -10/Materials | Discovered new exit (range 15) 1263 | -10/Materials | Entered Mines 1285 | -10/Mines | Discovered new exit (range 9) 1527 | -10/Mines | Met a Derelict who couldn't figure out how to use a Trap Extractor 1625 | -10/Mines | Learned location of 1 exit from Materials 1652 | -10/Mines | Found a damaged Exp. Sensor Array with a note attached 1655 | -10/Mines | Found Prototype Device 1655 | -10/Mines | Identified Exp. Sensor Array 1815 | -10/Mines | Discovered new exit (range 6) 1847 | -10/Mines | Entered Materials 1847 | -9/Materials | Evolved 2 slots: Propulsion x1, Utility x1 1848 | -9/Materials | Identified exit to Materials 2083 | -9/Materials | Discovered new exit (range 9) 2212 | -9/Materials | Entered another Materials area 2212 | -8/Materials | Evolved 2 slots: Propulsion x1, Utility x1 2334 | -8/Materials | Lost 4 parts (1p2n1w) 2449 | -8/Materials | Identified exit to Factory 2471 | -8/Materials | Entered Factory 2471 | -7/Factory | Evolved 2 slots: Utility x2 2532 | -7/Factory | Fabricated Hacking Suite (x1) 2563 | -7/Factory | Sucked down chute 2563 | -7/Factory | Entered Waste 2578 | -7/Waste | EMP discharged 2595 | -7/Waste | Spotted C-40 Crusher 2608 | -7/Waste | Spotted C-40 Crusher 2631 | -7/Waste | Met Warlord forces unprepared to attack 2676 | -7/Waste | Spotted C-40 Crusher 2678 | -7/Waste | EMP discharged 2678 | -7/Waste | System corruption reached 10% 2689 | -7/Waste | Allies destroyed C-40 Crusher 2722 | -7/Waste | Spotted C-40 Crusher 2725 | -7/Waste | Spotted C-40 Crusher 2737 | -7/Waste | Allies destroyed C-40 Crusher 2741 | -7/Waste | Allies destroyed C-40 Crusher 2770 | -7/Waste | Lost 5 allies 2778 | -7/Waste | EMP discharged 2787 | -7/Waste | Build established: Hacker-Mutant 2793 | -7/Waste | Spotted C-40 Crusher 2859 | -7/Waste | Discovered new exit (range 11) 2878 | -7/Waste | EMP discharged 2904 | -7/Waste | Identified exit to Factory 2915 | -7/Waste | Entered Factory 2915 | -7/Factory | Accompanied by 7 allies 2927 | -7/Factory | Identified exit to Garrison 2933 | -7/Factory | Garrison activated, responded to threat 2938 | -7/Factory | Entered Garrison 2938 | -7/Garrison | Accompanied by 7 allies 3016 | -7/Garrison | Triggered checkpoint 3016 | -7/Garrison | Triggered checkpoint 3044 | -7/Garrison | Triggered checkpoint 3083 | -7/Garrison | Lost 7 allies 3113 | -7/Garrison | Destroyed 7 combat bots 3177 | -7/Garrison | Garrison Relay disabled 3244 | -7/Garrison | Triggered checkpoint 3245 | -7/Garrison | System corruption reached 30% 3462 | -7/Garrison | Discovered new exit (range 12) 3576 | -7/Garrison | Discovered new exit (range 55) 3576 | -7/Garrison | Discovered new exit (range 30) 3576 | -7/Garrison | Discovered new exit (range 23) 3754 | -7/Garrison | Triggered checkpoint 3787 | -7/Garrison | Garrison Relay disabled 4021 | -7/Garrison | Installed Relay Interface Framework 4040 | -7/Garrison | Triggered checkpoint 4104 | -7/Garrison | Garrison Relay disabled 4168 | -7/Garrison | Build established: Scavenger-Mutant 4268 | -7/Garrison | Identified exit to Storage 4284 | -7/Garrison | Entered Storage 4284 | -7/Storage | Accompanied by 1 ally 4459 | -7/Storage | Identified exit to Garrison 4462 | -7/Storage | Entered Garrison 4462 | -7/Garrison | Accompanied by 1 ally 4505 | -7/Garrison | Found embedded Infiltrators 4560 | -7/Garrison | Triggered checkpoint 4605 | -7/Garrison | Build established: Hacker-Mutant 5091 | -7/Garrison | Build established: Scavenger-Mutant 5116 | -7/Garrison | Garrison Relay disabled 5127 | -7/Garrison | Garrison Relay disabled 5226 | -7/Garrison | Triggered checkpoint 5619 | -7/Garrison | Discovered new exit (range 14) 5630 | -7/Garrison | Identified exit to Recycling 5742 | -7/Garrison | Discovered exit to Recycling (range 14) 5787 | -7/Garrison | Core integrity fell below 50% 5870 | -7/Garrison | Triggered checkpoint 5889 | -7/Garrison | Lost 5 parts (1p1n2u1w) 5918 | -7/Garrison | Entered Recycling 5937 | -7/Recycling | Scanned before Scraplab entrance 6027 | -7/Recycling | Entered Scraplab 6031 | -7/Recycling | Angered Scraplab inhabitants 6033 | -7/Recycling | Found Prototype Device 6034 | -7/Recycling | Identified Scrap Engine 6042 | -7/Recycling | Core integrity fell below 20% 6078 | -7/Recycling | Lost 4 parts (2n2u) 6271 | -7/Recycling | Discovered new exit (range 16) 6293 | -7/Recycling | Identified exit to Factory 6294 | -7/Recycling | Entered Factory 6294 | -5/Factory | Evolved 4 slots: Propulsion x1, Utility x3 6483 | -5/Factory | Identified exit to Garrison 6483 | -5/Factory | Entered Garrison 6500 | -5/Garrison | Phase Generator disabled 6523 | -5/Garrison | Garrison Relay disabled 6664 | -5/Garrison | Garrison Relay disabled 6687 | -5/Garrison | Spotted B-75 Beast 6773 | -5/Garrison | Build established: Hacker-Scout 6823 | -5/Garrison | Triggered checkpoint 6843 | -5/Garrison | Discovered new exit (range 13) 6850 | -5/Garrison | Expanded RIF knowledge: Structural Interface 6860 | -5/Garrison | Identified exit to Factory 6861 | -5/Garrison | Entered Factory 6890 | -5/Factory | Lost 5 parts (1p1n2u1w) 7097 | -5/Factory | Identified exit to Garrison 7097 | -5/Factory | Entered Garrison 7185 | -5/Garrison | Triggered checkpoint 7208 | -5/Garrison | Discovered new exit (range 11) 7212 | -5/Garrison | Identified exit to Factory 7226 | -5/Garrison | Expanded RIF knowledge: Zone Cloak 7236 | -5/Garrison | Entered Factory 7236 | -4/Factory | Evolved 2 slots: Power x1, Utility x1 7313 | -4/Factory | Discovered new exit (range 18) 7322 | -4/Factory | Identified exit to Upper Caves 7322 | -4/Factory | Identified exit to Extension 7383 | -4/Factory | Build established: Hacker-Mutant 7393 | -4/Factory | Lost 5 parts (1p1n1u2w) 7415 | -4/Factory | Entered Extension 7436 | -4/Extension | Lost 8 parts (1p3n3u1w) 7553 | -4/Extension | Core integrity fell below 50% 7577 | -4/Extension | Rescued A7 7592 | -4/Extension | System corruption reached 10% 7727 | -4/Extension | Energy Cycler disabled 7727 | -4/Extension | Rescued a captive Derelict 7727 | -4/Extension | Rescued a captive Derelict 7727 | -4/Extension | Rescued a captive Derelict 7728 | -4/Extension | Rescued a captive Derelict 7729 | -4/Extension | Rescued a captive Derelict 7730 | -4/Extension | Rescued a captive Derelict 7769 | -4/Extension | System corruption reached 30% 7864 | -4/Extension | Spotted B-86 Titan 7896 | -4/Extension | Spotted B-86 Titan 7926 | -4/Extension | Extracted ID and sensor layout for unrecognized location from A7's data core 7933 | -4/Extension | Discovered new exit (range 19) 7962 | -4/Extension | Core integrity fell below 20% 8010 | -4/Extension | Lost 10 parts (1p4n3u2w) 8030 | -4/Extension | Destroyed by B-86 Titan with Hardcell Cannon Last Messages --------------- 07977_ RIF reveals location of hidden door. 07979_ RIHHI7CR%OCPQGICOM0RUM Q I XAH=JE5DDTM| 07979_ Myomer Leg destroyed. 07979_ Dropped Hvy. Disruptor Cannon. 07981_ Integrated Corrupted Lgt. Antimatter Reactor (+2). 07981_ NS-U3V(h) destroyed. 07982_ Dropped Lgt. Antimatter Reactor. 07983_ Critical hit (Burn: +50). 07984_ HV Slug penetrates Wall. 07986_ Penetrated by Slug. 07988_ ALERT: Construction progress impeded, dispatching reinforcements to local area. 07994_ System corrupted: Matter fused (-10). 08014_ System corrupted: Component data lost. 08023_ Lgt. Antimatter Reactor destroyed. 08025_ Acquired 3 matter. 08028_ Acquired 32 matter. 08029_ RIF reveals location of hidden door. 08030_ Acquired Myomer Leg. Map ----- +----------------------------------------------------+ | ?????????????????????????????????????????????????? | | ?????????????????????????????????????????????????? | | ?????????????????????????????????????????????????? | | ?????????????????????????????????????????????????? | | ?????????????????????????????????????????????????? | | ?????????????????????????????????????????????????? | | ?????????????????????????????????????????????????? | | ?????????????????????????????????????????????????? | | ?????????????????????????????????????????????????? | | ?????????????????????????????????????????????????? | | ?????????????????????????????????????????????????? | | ?????????????????????????????????????????????????? | | ?????????????????????????????????????????????????? | | ?????????????????????????????????????????????????? | | ?????????????????????????????????????????????????? | | ?????????????????????????????????????????????????? | | ?????????????????????????????????????????????????? | | ?????????????????????????????????????????????????? | | ?????????????????????????????????????????????????? | | ?????????????????????????????????????????????????? | | ??????????????????????##?????????????#???????????? | | #######################;###########; #########???? | | % % %% ???? | | Y g % % ??? | | t g % % % % %% % g ??? | | = t BB @ % %! g g g ??? | | % BB gk Rk R % % R u k ??? | | ##+#####/###########;#######;##########+###??????? | | ?# #### #????###???????#???????????????????? | | ?# ### #??????????????????????????????????? | | ?###### #?# #####??????????????????????????????? | | ############# ##!!###????????????????????????????? | | ""#????????????????????????????? | | """"""""""""" """"""#????????????????????????????? | | #####################????????????????????????????? | | | | | | | | | | | | | | | | | | | | | | | | | | | | | | | +----------------------------------------------------+ Best States ------------- Heat Dissipation 65 Energy Generation 37 Energy Capacity 385 Matter Stores 300 Matter Capacity 300 Sight Range 22 Robot Scan Range 20 Terrain Scan Density 10 Jamming Range 14 Additional Mass Support 12 Armor Coverage 825 Utility Shielding 66 Phase Shifting 15 Evasion (%) 71 Targeting Accuracy 8 Offensive Hacking 20 Defensive Hacking 20 Relay Coupler Types 1 Relay Coupler Value 35 Item Schematics ----------------- System Shield | -8/Materials | Scanalyzed Grenade Launcher | -8/Materials | Scanalyzed Hacking Suite | -8/Materials | Hacked Robot Schematics ------------------ None Fabricated ------------ Hacking Suite | x1 | -7/Factory Repaired ---------- Nothing Alien Tech Used ----------------- None Achievements -------------- Error 47 Infiltrator Prison Break Z1$+NX3F=JRE3_ZNQR Challenges ------------ None Game ------ Seed ServoServoMatterbank Manual? 0 Play Time 02:22:53 Cumulative 67.0 hours Start 2025.08.21 @ 14:40:44 End 2025.08.21 @ 17:17:46 Sessions 1 Manual Loads 0 Difficulty Rogue Special Mode None Game No. 49 Rogue 49 Adventurer 0 Explorer 0 Win Type - Total 2 Types 1/0/0/1/0/0/0/0/0/0 Lore% 57 Gallery% 49 Achievement% 42 Wizard Run 0 Options --------- Layout 1 ASCII 0 Keyboard 0 Movement Mouse Keybinds 0 Fullscreen 1 Font 24/Smallcaps Map View 50x35 Zoom Use 0% Tactical HUD 1 Map Filters NONE Filters NONE Steam 1 RUN: c839ae6c-6659-4cb6-b76e-7be7941aff65